[Event "Late-Titled-Tuesday-Blitz-March-12-2024"]
[Site "Chess.com"]
[Date "2024.03.12"]
[Round "5"]
[White "EsmeraldasAnderson03"]
[Black "scrambleyourbrain"]
[Result "1-0"]
[WhiteElo "2576"]
[BlackElo "2400"]
[TimeControl "180+1"]
[EndTime "14:54:21 PDT"]
[Termination "EsmeraldasAnderson03 won by resignation"]

1. d4 {[%clk 0:03:00.9]} 1... Nf6 {[%clk 0:02:59.5]} 2. c4 {[%clk 0:02:56.8]}
2... e6 {[%clk 0:02:59.5]} 3. Nc3 {[%clk 0:02:56.8]} 3... Bb4 {[%clk 0:02:59.3]}
4. f3 {[%clk 0:02:57.5]} 4... d5 {[%clk 0:02:59.1]} 5. a3 {[%clk 0:02:56.1]}
5... Bxc3+ {[%clk 0:02:58.6]} 6. bxc3 {[%clk 0:02:57]} 6... c5 {[%clk
0:02:58.4]} 7. cxd5 {[%clk 0:02:54.8]} 7... Nxd5 {[%clk 0:02:58.3]} 8. dxc5
{[%clk 0:02:14.2]} 8... f5 {[%clk 0:02:55.3]} 9. e4 {[%clk 0:02:08.4]} 9... fxe4
{[%clk 0:02:54.1]} 10. fxe4 {[%clk 0:02:08.3]} 10... Qh4+ {[%clk 0:02:53.3]} 11.
Kd2 {[%clk 0:01:43.6]} 11... Qxe4 {[%clk 0:02:30.5]} 12. Qf3 {[%clk 0:01:43]}
12... Qe5 {[%clk 0:02:24.8]} 13. Nh3 {[%clk 0:01:24.3]} 13... Rf8 {[%clk
0:02:13.3]} 14. Qg3 {[%clk 0:01:24.6]} 14... Qxg3 {[%clk 0:01:50.7]} 15. hxg3
{[%clk 0:01:25]} 15... Nd7 {[%clk 0:01:50.3]} 16. Ng5 {[%clk 0:00:58.6]} 16...
Nxc5 {[%clk 0:01:48.6]} 17. Bb5+ {[%clk 0:00:44.7]} 17... Bd7 {[%clk 0:01:39.9]}
18. Bxd7+ {[%clk 0:00:43.3]} 18... Kxd7 {[%clk 0:01:40.1]} 19. Rb1 {[%clk
0:00:26.1]} 19... h6 {[%clk 0:01:37.9]} 20. Nf3 {[%clk 0:00:25.5]} 20... b6
{[%clk 0:01:26.7]} 21. Re1 {[%clk 0:00:22.7]} 21... Rad8 {[%clk 0:01:14.3]} 22.
Kc2 {[%clk 0:00:21.9]} 22... Kc8 {[%clk 0:01:04.1]} 23. Be3 {[%clk 0:00:17.2]}
23... Nxe3+ {[%clk 0:01:00.9]} 24. Rxe3 {[%clk 0:00:18.1]} 24... g5 {[%clk
0:00:58.8]} 25. Rbe1 {[%clk 0:00:18.4]} 25... Kb7 {[%clk 0:00:55.6]} 26. Nd4
{[%clk 0:00:18.3]} 26... Rf2+ {[%clk 0:00:54.7]} 27. R1e2 {[%clk 0:00:18.9]}
27... Rxe2+ {[%clk 0:00:54.8]} 28. Rxe2 {[%clk 0:00:19.8]} 28... Rd6 {[%clk
0:00:55]} 29. Nb5 {[%clk 0:00:19.7]} 29... Rd5 {[%clk 0:00:47.8]} 30. Nd4 {[%clk
0:00:16.9]} 30... Rd6 {[%clk 0:00:41.3]} 31. Nb5 {[%clk 0:00:16.1]} 31... Rd7
{[%clk 0:00:41.6]} 32. Nd4 {[%clk 0:00:16.3]} 32... Re7 {[%clk 0:00:37.8]} 33.
Nf5 {[%clk 0:00:14.5]} 33... Rh7 {[%clk 0:00:31.5]} 34. Nd4 {[%clk 0:00:14.3]}
34... Kc8 {[%clk 0:00:16.2]} 35. Nxe6 {[%clk 0:00:13.4]} 35... Re7 {[%clk
0:00:16.1]} 36. Nd4 {[%clk 0:00:14.1]} 36... Rxe2+ {[%clk 0:00:16.2]} 37. Nxe2
{[%clk 0:00:15]} 37... Kd7 {[%clk 0:00:16.7]} 38. c4 {[%clk 0:00:14.8]} 38...
Ke6 {[%clk 0:00:17.2]} 39. Nd4+ {[%clk 0:00:14.4]} 39... Ke5 {[%clk 0:00:17.4]}
40. Nb5 {[%clk 0:00:15.3]} 40... a6 {[%clk 0:00:16.3]} 41. Nc7 {[%clk
0:00:15.5]} 41... Kf5 {[%clk 0:00:15.8]} 42. Nd5 {[%clk 0:00:14.4]} 42... b5
{[%clk 0:00:15.8]} 43. Kc3 {[%clk 0:00:13.3]} 43... Ne4+ {[%clk 0:00:11.9]} 44.
Kd4 {[%clk 0:00:13.2]} 44... bxc4 {[%clk 0:00:09.7]} 45. Ne3+ {[%clk 0:00:13.6]}
45... Kg6 {[%clk 0:00:08.9]} 46. Kxe4 {[%clk 0:00:14.2]} 1-0

[Event "Late-Titled-Tuesday-Blitz-March-12-2024"]
[Site "Chess.com"]
[Date "2024.03.12"]
[Round "5"]
[White "Smiechu"]
[Black "Likvidator228"]
[Result "0-1"]
[WhiteElo "2468"]
[BlackElo "2607"]
[TimeControl "180+1"]
[EndTime "14:54:22 PDT"]
[Termination "Likvidator228 won on time"]

1. e4 {[%clk 0:03:00.9]} 1... c5 {[%clk 0:02:57.1]} 2. Nf3 {[%clk 0:03:00.7]}
2... g6 {[%clk 0:02:55.4]} 3. d4 {[%clk 0:03:01]} 3... cxd4 {[%clk 0:02:56.3]}
4. Nxd4 {[%clk 0:03:01.4]} 4... Bg7 {[%clk 0:02:56.4]} 5. Nc3 {[%clk 0:03:02]}
5... Nc6 {[%clk 0:02:56.9]} 6. Be3 {[%clk 0:03:02.5]} 6... Nf6 {[%clk
0:02:57.3]} 7. Bc4 {[%clk 0:03:03.1]} 7... O-O {[%clk 0:02:57.2]} 8. Bb3 {[%clk
0:03:03.2]} 8... a5 {[%clk 0:02:57.9]} 9. O-O {[%clk 0:03:01.5]} 9... a4 {[%clk
0:02:57.8]} 10. Nxa4 {[%clk 0:03:01.7]} 10... Nxe4 {[%clk 0:02:57.9]} 11. Nb5
{[%clk 0:03:02]} 11... d5 {[%clk 0:02:58]} 12. Nb6 {[%clk 0:02:37.2]} 12... Ra5
{[%clk 0:02:38.2]} 13. Bxd5 {[%clk 0:02:03.2]} 13... Rxb5 {[%clk 0:02:34.1]} 14.
Bxe4 {[%clk 0:02:03.3]} 14... Rxb2 {[%clk 0:02:25.1]} 15. Qxd8 {[%clk 0:02:01]}
15... Rxd8 {[%clk 0:02:25]} 16. Rad1 {[%clk 0:02:01.4]} 16... Re8 {[%clk
0:02:10.4]} 17. a4 {[%clk 0:01:54.5]} 17... Be6 {[%clk 0:02:05.3]} 18. Rb1
{[%clk 0:01:35.5]} 18... Ra2 {[%clk 0:02:02.2]} 19. Rfd1 {[%clk 0:01:13.8]}
19... f5 {[%clk 0:01:48.1]} 20. Bd5 {[%clk 0:00:59.8]} 20... Bxd5 {[%clk
0:01:46.8]} 21. Nxd5 {[%clk 0:01:00.7]} 21... Rxa4 {[%clk 0:01:38.8]} 22. Rxb7
{[%clk 0:00:59.8]} 22... Rc4 {[%clk 0:01:32.3]} 23. Rd2 {[%clk 0:00:40.6]} 23...
Kf7 {[%clk 0:01:26.3]} 24. g3 {[%clk 0:00:40]} 24... Nd4 {[%clk 0:01:10.7]} 25.
Bxd4 {[%clk 0:00:21.5]} 25... Bxd4 {[%clk 0:01:11.6]} 26. c3 {[%clk 0:00:20.3]}
26... Bc5 {[%clk 0:01:01]} 27. Rc7 {[%clk 0:00:18.1]} 27... Ra8 {[%clk
0:00:43.4]} 28. Kg2 {[%clk 0:00:18.4]} 28... Raa4 {[%clk 0:00:38.7]} 29. Re2
{[%clk 0:00:17.1]} 29... Bd6 {[%clk 0:00:38.9]} 30. Rb7 {[%clk 0:00:08.1]} 30...
Re4 {[%clk 0:00:37.4]} 31. Rxe4 {[%clk 0:00:05.3]} 31... Rxe4 {[%clk 0:00:34.6]}
32. Ne3 {[%clk 0:00:05.5]} 32... Ra4 {[%clk 0:00:28.9]} 33. c4 {[%clk
0:00:05.6]} 33... Bc5 {[%clk 0:00:26.7]} 34. Rc7 {[%clk 0:00:05.4]} 34... Bb6
{[%clk 0:00:17.1]} 35. Rc6 {[%clk 0:00:05.1]} 35... Bxe3 {[%clk 0:00:17.6]} 36.
fxe3 {[%clk 0:00:05.1]} 36... Ke8 {[%clk 0:00:18.1]} 37. Kf3 {[%clk 0:00:04.4]}
37... Kd7 {[%clk 0:00:18.7]} 38. Rc5 {[%clk 0:00:04.8]} 38... e6 {[%clk
0:00:17.5]} 39. Kf4 {[%clk 0:00:04.5]} 39... Kd6 {[%clk 0:00:18]} 40. Rc8 {[%clk
0:00:04.5]} 40... h6 {[%clk 0:00:16.4]} 41. h4 {[%clk 0:00:03.4]} 41... e5+
{[%clk 0:00:16.8]} 42. Kf3 {[%clk 0:00:03.4]} 42... Ra3 {[%clk 0:00:16.9]} 0-1

[Event "Late-Titled-Tuesday-Blitz-March-12-2024"]
[Site "Chess.com"]
[Date "2024.03.12"]
[Round "5"]
[White "Polish_fighter3000"]
[Black "GOGIEFF"]
[Result "1-0"]
[WhiteElo "3145"]
[BlackElo "3020"]
[TimeControl "180+1"]
[EndTime "14:54:23 PDT"]
[Termination "Polish_fighter3000 won on time"]

1. d4 {[%clk 0:03:00.9]} 1... d5 {[%clk 0:02:56.1]} 2. c4 {[%clk 0:03:00.9]}
2... c6 {[%clk 0:02:56.5]} 3. Nc3 {[%clk 0:03:00.3]} 3... Nf6 {[%clk 0:02:56.6]}
4. Nf3 {[%clk 0:02:59.4]} 4... e6 {[%clk 0:02:56.4]} 5. Bg5 {[%clk 0:02:59]}
5... h6 {[%clk 0:02:56.7]} 6. Bh4 {[%clk 0:02:57.9]} 6... dxc4 {[%clk 0:02:57]}
7. e4 {[%clk 0:02:58]} 7... g5 {[%clk 0:02:57.6]} 8. Bg3 {[%clk 0:02:57.2]} 8...
b5 {[%clk 0:02:58.2]} 9. h4 {[%clk 0:02:55]} 9... g4 {[%clk 0:02:56.7]} 10. Ne5
{[%clk 0:02:55.3]} 10... Nbd7 {[%clk 0:02:55.7]} 11. Nxg4 {[%clk 0:02:51.2]}
11... Nxg4 {[%clk 0:02:34.5]} 12. Qxg4 {[%clk 0:02:52.1]} 12... Bb7 {[%clk
0:02:22.5]} 13. Be2 {[%clk 0:02:41.7]} 13... Nf6 {[%clk 0:02:12.8]} 14. Qf3
{[%clk 0:02:29]} 14... Rg8 {[%clk 0:02:04.1]} 15. O-O {[%clk 0:02:16.8]} 15...
Be7 {[%clk 0:01:49.4]} 16. Qe3 {[%clk 0:02:03.1]} 16... h5 {[%clk 0:01:42.4]}
17. b3 {[%clk 0:01:52.7]} 17... cxb3 {[%clk 0:01:32.1]} 18. axb3 {[%clk
0:01:53.6]} 18... Qb6 {[%clk 0:01:28.8]} 19. Rfd1 {[%clk 0:01:48.5]} 19... O-O-O
{[%clk 0:01:11.1]} 20. Nxb5 {[%clk 0:01:02.6]} 20... Rxg3 {[%clk 0:01:06.7]} 21.
Qxg3 {[%clk 0:01:03]} 21... cxb5 {[%clk 0:01:06.9]} 22. Rac1+ {[%clk 0:01:00.5]}
22... Kd7 {[%clk 0:01:07.2]} 23. d5 {[%clk 0:00:56.2]} 23... exd5 {[%clk
0:01:03.2]} 24. exd5 {[%clk 0:00:18.9]} 24... Bd6 {[%clk 0:01:03.4]} 25. Qg7
{[%clk 0:00:13.9]} 25... Re8 {[%clk 0:00:33.7]} 26. Bxb5+ {[%clk 0:00:07.5]}
26... Qxb5 {[%clk 0:00:31.7]} 27. Qxf7+ {[%clk 0:00:07.7]} 27... Re7 {[%clk
0:00:26.8]} 28. Qxf6 {[%clk 0:00:08.1]} 28... Qb4 {[%clk 0:00:18.4]} 29. Qf5+
{[%clk 0:00:05.8]} 29... Kd8 {[%clk 0:00:18.6]} 30. Qxh5 {[%clk 0:00:04.2]}
30... Qe4 {[%clk 0:00:13.6]} 31. Qg5 {[%clk 0:00:02.2]} 31... Kd7 {[%clk
0:00:11.2]} 32. g3 {[%clk 0:00:02.4]} 32... Ba6 {[%clk 0:00:09.6]} 33. Ra1
{[%clk 0:00:02.6]} 33... Qe2 {[%clk 0:00:05.9]} 34. Rd2 {[%clk 0:00:03.1]} 34...
Qb5 {[%clk 0:00:04.3]} 35. Qf5+ {[%clk 0:00:03.5]} 35... Kc7 {[%clk 0:00:04.7]}
36. Rc2+ {[%clk 0:00:03.5]} 36... Kb7 {[%clk 0:00:04.8]} 37. Qc8+ {[%clk
0:00:03]} 37... Kb6 {[%clk 0:00:04.6]} 38. Rc6+ {[%clk 0:00:03.9]} 1-0

[Event "Late-Titled-Tuesday-Blitz-March-12-2024"]
[Site "Chess.com"]
[Date "2024.03.12"]
[Round "5"]
[White "SharathRk6"]
[Black "subham777"]
[Result "1-0"]
[WhiteElo "2397"]
[BlackElo "2558"]
[TimeControl "180+1"]
[EndTime "14:54:24 PDT"]
[Termination "SharathRk6 won on time"]

1. e4 {[%clk 0:03:00.9]} 1... e6 {[%clk 0:02:59.5]} 2. d4 {[%clk 0:03:00.1]}
2... d5 {[%clk 0:03:00]} 3. e5 {[%clk 0:02:59.2]} 3... c5 {[%clk 0:03:00]} 4. c3
{[%clk 0:02:59.5]} 4... Nc6 {[%clk 0:02:59.9]} 5. Nf3 {[%clk 0:02:59.3]} 5...
Qb6 {[%clk 0:02:59.9]} 6. Be2 {[%clk 0:02:59.9]} 6... Bd7 {[%clk 0:02:58.6]} 7.
O-O {[%clk 0:03:00]} 7... cxd4 {[%clk 0:02:58.6]} 8. cxd4 {[%clk 0:03:00]} 8...
g6 {[%clk 0:02:59]} 9. Nc3 {[%clk 0:02:51.4]} 9... a6 {[%clk 0:02:58.4]} 10. a3
{[%clk 0:02:49.1]} 10... Nge7 {[%clk 0:02:57.1]} 11. b4 {[%clk 0:02:47.9]} 11...
Nf5 {[%clk 0:02:55.7]} 12. Be3 {[%clk 0:02:47.6]} 12... Bg7 {[%clk 0:02:52.1]}
13. Rc1 {[%clk 0:02:46.4]} 13... O-O {[%clk 0:02:51.4]} 14. Na4 {[%clk
0:02:45.4]} 14... Qa7 {[%clk 0:02:48.6]} 15. Nc5 {[%clk 0:02:44.5]} 15... Nxe3
{[%clk 0:02:45.2]} 16. fxe3 {[%clk 0:02:43.6]} 16... Be8 {[%clk 0:02:43.5]} 17.
Bd3 {[%clk 0:02:37.3]} 17... Nb8 {[%clk 0:02:32]} 18. e4 {[%clk 0:02:24.4]}
18... Bc6 {[%clk 0:02:22.7]} 19. Kh1 {[%clk 0:02:21.1]} 19... b6 {[%clk
0:02:14.9]} 20. exd5 {[%clk 0:02:16.8]} 20... Bxd5 {[%clk 0:02:09.8]} 21. Ne4
{[%clk 0:02:15.2]} 21... Qe7 {[%clk 0:02:00]} 22. Qc2 {[%clk 0:01:56.8]} 22...
Nc6 {[%clk 0:01:39.6]} 23. Qf2 {[%clk 0:01:42]} 23... h6 {[%clk 0:01:16.4]} 24.
Qe3 {[%clk 0:01:26.8]} 24... Kh7 {[%clk 0:01:12.3]} 25. Nfg5+ {[%clk 0:00:52.8]}
25... hxg5 {[%clk 0:00:55.2]} 26. Qh3+ {[%clk 0:00:52.4]} 26... Kg8 {[%clk
0:00:52.6]} 27. Nf6+ {[%clk 0:00:52.1]} 27... Bxf6 {[%clk 0:00:34.5]} 28. exf6
{[%clk 0:00:50.1]} 28... Qxf6 {[%clk 0:00:31]} 29. Rxf6 {[%clk 0:00:50]} 29...
Kg7 {[%clk 0:00:31.9]} 30. Rcf1 {[%clk 0:00:39.9]} 30... Nxd4 {[%clk 0:00:20.5]}
31. Qe3 {[%clk 0:00:32.5]} 31... Nf5 {[%clk 0:00:16.1]} 32. Qe5 {[%clk
0:00:30.2]} 32... Kh6 {[%clk 0:00:10.6]} 33. Bxf5 {[%clk 0:00:29.6]} 33... exf5
{[%clk 0:00:10.9]} 34. Qxd5 {[%clk 0:00:29.2]} 34... Rad8 {[%clk 0:00:11]} 35.
Qb3 {[%clk 0:00:25.5]} 35... Kg7 {[%clk 0:00:10.1]} 36. Rxb6 {[%clk 0:00:25.6]}
36... Rfe8 {[%clk 0:00:10.2]} 37. h3 {[%clk 0:00:25.1]} 37... Re7 {[%clk
0:00:10.2]} 38. Qc3+ {[%clk 0:00:24.9]} 38... Kg8 {[%clk 0:00:08.3]} 39. Rc6
{[%clk 0:00:25.5]} 39... Ree8 {[%clk 0:00:07.1]} 40. Rc1 {[%clk 0:00:25]} 40...
f4 {[%clk 0:00:03.5]} 41. Qc4 {[%clk 0:00:22.4]} 41... Re7 {[%clk 0:00:02]} 42.
Rxg6+ {[%clk 0:00:22.3]} 42... Kh7 {[%clk 0:00:01.8]} 43. Rf6 {[%clk 0:00:20.5]}
43... Rdd7 {[%clk 0:00:01.8]} 44. Qxa6 {[%clk 0:00:17.8]} 44... Kg7 {[%clk
0:00:01.6]} 45. Rh6 {[%clk 0:00:17]} 45... f6 {[%clk 0:00:01.1]} 46. Qxf6+
{[%clk 0:00:16.6]} 1-0

[Event "Late-Titled-Tuesday-Blitz-March-12-2024"]
[Site "Chess.com"]
[Date "2024.03.12"]
[Round "5"]
[White "yaguigor"]
[Black "RichardShtivelband"]
[Result "1-0"]
[WhiteElo "2617"]
[BlackElo "2488"]
[TimeControl "180+1"]
[EndTime "14:54:25 PDT"]
[Termination "yaguigor won by resignation"]

1. d4 {[%clk 0:03:00.9]} 1... d5 {[%clk 0:02:54.9]} 2. c4 {[%clk 0:02:59.9]}
2... c6 {[%clk 0:02:54.8]} 3. Nf3 {[%clk 0:02:58.9]} 3... Nf6 {[%clk 0:02:55]}
4. Nc3 {[%clk 0:02:58.1]} 4... e6 {[%clk 0:02:55.3]} 5. Bg5 {[%clk 0:02:57.5]}
5... dxc4 {[%clk 0:02:54.2]} 6. e4 {[%clk 0:02:56.2]} 6... h6 {[%clk 0:02:53.9]}
7. Bxf6 {[%clk 0:02:55.3]} 7... Qxf6 {[%clk 0:02:53.1]} 8. Bxc4 {[%clk
0:02:55.2]} 8... Nd7 {[%clk 0:02:50.3]} 9. e5 {[%clk 0:02:51]} 9... Qe7 {[%clk
0:02:43.8]} 10. O-O {[%clk 0:02:49.9]} 10... g6 {[%clk 0:02:42.5]} 11. Ne4
{[%clk 0:02:49]} 11... Bg7 {[%clk 0:02:42.7]} 12. Nd6+ {[%clk 0:02:49.1]} 12...
Kf8 {[%clk 0:02:41.8]} 13. b4 {[%clk 0:02:46.1]} 13... a6 {[%clk 0:02:40.4]} 14.
Qd2 {[%clk 0:02:32.3]} 14... Nb6 {[%clk 0:02:31.7]} 15. Bb3 {[%clk 0:02:30.5]}
15... Rb8 {[%clk 0:02:25.9]} 16. h4 {[%clk 0:02:27.2]} 16... Bd7 {[%clk
0:02:24.3]} 17. a4 {[%clk 0:02:23.5]} 17... Nc8 {[%clk 0:02:24]} 18. Ne4 {[%clk
0:02:20.3]} 18... Na7 {[%clk 0:02:18.1]} 19. Rfc1 {[%clk 0:02:04.2]} 19... Rd8
{[%clk 0:02:17.6]} 20. Qc3 {[%clk 0:01:57.9]} 20... Bc8 {[%clk 0:02:10.9]} 21.
Rd1 {[%clk 0:01:43.9]} 21... Kg8 {[%clk 0:02:10.8]} 22. Ng3 {[%clk 0:01:39.7]}
22... Kh7 {[%clk 0:02:01.4]} 23. h5 {[%clk 0:01:39.7]} 23... Rhf8 {[%clk
0:01:49.4]} 24. Bc2 {[%clk 0:01:38.1]} 24... Bd7 {[%clk 0:01:38.7]} 25. Qc5
{[%clk 0:01:23.8]} 25... Qxc5 {[%clk 0:01:37.9]} 26. dxc5 {[%clk 0:01:23.9]}
26... Nc8 {[%clk 0:01:31.6]} 27. Ne4 {[%clk 0:01:21.9]} 27... Ne7 {[%clk
0:01:29.5]} 28. Nd6 {[%clk 0:01:18.4]} 28... Bc8 {[%clk 0:00:53.4]} 29. Be4
{[%clk 0:01:13.2]} 29... Kg8 {[%clk 0:00:40.7]} 30. Nxc8 {[%clk 0:01:05.5]}
30... Nxc8 {[%clk 0:00:38.2]} 31. hxg6 {[%clk 0:01:04]} 31... fxg6 {[%clk
0:00:38]} 32. Bxg6 {[%clk 0:01:03.2]} 32... Ne7 {[%clk 0:00:35]} 33. Be4 {[%clk
0:01:02.7]} 33... Nd5 {[%clk 0:00:34.5]} 34. Bxd5 {[%clk 0:01:02.2]} 34... exd5
{[%clk 0:00:32.2]} 35. Rd4 {[%clk 0:00:59.9]} 35... Rde8 {[%clk 0:00:31.4]} 36.
Re1 {[%clk 0:00:59.1]} 36... Re6 {[%clk 0:00:31.2]} 37. Rg4 {[%clk 0:00:52.4]}
37... Kh7 {[%clk 0:00:30.5]} 38. b5 {[%clk 0:00:48.2]} 38... axb5 {[%clk
0:00:29.6]} 39. axb5 {[%clk 0:00:48.1]} 39... Rfe8 {[%clk 0:00:15.8]} 40. bxc6
{[%clk 0:00:47.7]} 40... Rxc6 {[%clk 0:00:14.4]} 41. Rb4 {[%clk 0:00:42.7]}
41... Re7 {[%clk 0:00:14.2]} 42. Rc1 {[%clk 0:00:39.8]} 42... Rce6 {[%clk
0:00:10.3]} 43. Rcb1 {[%clk 0:00:37.3]} 43... Bxe5 {[%clk 0:00:09]} 44. Rxb7
{[%clk 0:00:36.6]} 44... Bf6 {[%clk 0:00:04.8]} 45. Rxe7+ {[%clk 0:00:34.1]}
45... Rxe7 {[%clk 0:00:05.7]} 46. c6 {[%clk 0:00:32.9]} 46... Rc7 {[%clk
0:00:02.9]} 47. Rb7 {[%clk 0:00:30.4]} 47... Bd8 {[%clk 0:00:03.4]} 48. Rxc7+
{[%clk 0:00:28.9]} 48... Bxc7 {[%clk 0:00:03.7]} 49. Nd4 {[%clk 0:00:29.5]}
49... Kg6 {[%clk 0:00:03.5]} 50. Nb5 {[%clk 0:00:29.5]} 1-0

[Event "Late-Titled-Tuesday-Blitz-March-12-2024"]
[Site "Chess.com"]
[Date "2024.03.12"]
[Round "5"]
[White "ITheOnlyME"]
[Black "DucksParadise"]
[Result "1/2-1/2"]
[WhiteElo "2408"]
[BlackElo "2568"]
[TimeControl "180+1"]
[EndTime "14:54:25 PDT"]
[Termination "Game drawn by stalemate"]

1. d4 {[%clk 0:02:57.7]} 1... d5 {[%clk 0:02:58.2]} 2. Bf4 {[%clk 0:02:58.2]}
2... Nf6 {[%clk 0:02:54]} 3. e3 {[%clk 0:02:57.9]} 3... c5 {[%clk 0:02:53.7]} 4.
dxc5 {[%clk 0:02:58.8]} 4... e6 {[%clk 0:02:50.4]} 5. b4 {[%clk 0:02:56.4]} 5...
a5 {[%clk 0:02:49.4]} 6. c3 {[%clk 0:02:56.3]} 6... b6 {[%clk 0:02:47.4]} 7.
Bxb8 {[%clk 0:02:54.3]} 7... Rxb8 {[%clk 0:02:47.7]} 8. Qa4+ {[%clk 0:02:54.3]}
8... Ke7 {[%clk 0:02:32.5]} 9. c6 {[%clk 0:02:54.2]} 9... Qd6 {[%clk 0:02:02.3]}
10. b5 {[%clk 0:02:51.4]} 10... Ne4 {[%clk 0:01:54.9]} 11. Bd3 {[%clk
0:02:48.2]} 11... f5 {[%clk 0:01:51.6]} 12. Bxe4 {[%clk 0:02:42.6]} 12... fxe4
{[%clk 0:01:51.4]} 13. Ne2 {[%clk 0:02:38.4]} 13... g6 {[%clk 0:01:40.1]} 14.
Na3 {[%clk 0:02:21.8]} 14... Bg7 {[%clk 0:01:33.4]} 15. Rd1 {[%clk 0:02:22]}
15... Qc5 {[%clk 0:01:23.7]} 16. O-O {[%clk 0:02:07.7]} 16... e5 {[%clk
0:01:19.3]} 17. Nc2 {[%clk 0:01:50.3]} 17... Bg4 {[%clk 0:01:04.7]} 18. Rfe1
{[%clk 0:01:50.5]} 18... Rhf8 {[%clk 0:00:51.1]} 19. Qa3 {[%clk 0:01:49.4]}
19... Qxa3 {[%clk 0:00:44.4]} 20. Nxa3 {[%clk 0:01:50.3]} 20... Kd6 {[%clk
0:00:42.5]} 21. c4 {[%clk 0:01:47]} 21... d4 {[%clk 0:00:39.9]} 22. exd4 {[%clk
0:01:43.9]} 22... exd4 {[%clk 0:00:38.6]} 23. Rd2 {[%clk 0:01:33.8]} 23... Kc5
{[%clk 0:00:34.8]} 24. Nxd4 {[%clk 0:01:22.1]} 24... Bxd4 {[%clk 0:00:30.5]} 25.
Rxe4 {[%clk 0:01:22.1]} 25... Rbd8 {[%clk 0:00:28.7]} 26. Nc2 {[%clk 0:00:59.9]}
26... Bxf2+ {[%clk 0:00:28.4]} 27. Rxf2 {[%clk 0:00:59.6]} 27... Rd1+ {[%clk
0:00:28.2]} 28. Re1 {[%clk 0:00:59.9]} 28... Rxf2 {[%clk 0:00:25.7]} 29. Kxf2
{[%clk 0:01:00]} 29... Rd2+ {[%clk 0:00:25.7]} 30. Kg3 {[%clk 0:00:59.4]} 30...
Rxc2 {[%clk 0:00:24.6]} 31. Kxg4 {[%clk 0:00:59.7]} 31... Rxc4+ {[%clk
0:00:22.6]} 32. Kg5 {[%clk 0:00:55.2]} 32... Kxb5 {[%clk 0:00:22.9]} 33. Re7
{[%clk 0:00:50.8]} 33... Rxc6 {[%clk 0:00:19.6]} 34. Rxh7 {[%clk 0:00:50.8]}
34... Rc2 {[%clk 0:00:19.9]} 35. g4 {[%clk 0:00:49.6]} 35... Rxa2 {[%clk
0:00:18.8]} 36. Kxg6 {[%clk 0:00:49.5]} 36... Ka4 {[%clk 0:00:17.5]} 37. h4
{[%clk 0:00:47.7]} 37... b5 {[%clk 0:00:17.5]} 38. h5 {[%clk 0:00:48.1]} 38...
b4 {[%clk 0:00:18]} 39. Rb7 {[%clk 0:00:46.5]} 39... Rh2 {[%clk 0:00:17.2]} 40.
h6 {[%clk 0:00:46.2]} 40... b3 {[%clk 0:00:17.3]} 41. h7 {[%clk 0:00:45.7]}
41... Ka3 {[%clk 0:00:17.8]} 42. Kg7 {[%clk 0:00:43.4]} 42... a4 {[%clk
0:00:17.4]} 43. h8=Q {[%clk 0:00:42.5]} 43... Rxh8 {[%clk 0:00:17.3]} 44. Kxh8
{[%clk 0:00:43.4]} 44... Ka2 {[%clk 0:00:17.8]} 45. g5 {[%clk 0:00:43.6]} 45...
b2 {[%clk 0:00:16.7]} 46. g6 {[%clk 0:00:42.4]} 46... b1=Q {[%clk 0:00:16.7]}
47. Rxb1 {[%clk 0:00:40.3]} 47... Kxb1 {[%clk 0:00:17.6]} 48. g7 {[%clk
0:00:40.4]} 48... a3 {[%clk 0:00:18.5]} 49. g8=Q {[%clk 0:00:40.7]} 49... a2
{[%clk 0:00:19.4]} 50. Qb3+ {[%clk 0:00:41.1]} 50... Ka1 {[%clk 0:00:19]} 51.
Qc3+ {[%clk 0:00:41.3]} 51... Kb1 {[%clk 0:00:19.9]} 52. Qd3+ {[%clk 0:00:41.3]}
52... Kb2 {[%clk 0:00:19.9]} 53. Qd2+ {[%clk 0:00:41.5]} 53... Kb1 {[%clk
0:00:20.3]} 54. Qd3+ {[%clk 0:00:40.4]} 54... Kb2 {[%clk 0:00:20.6]} 55. Qd4+
{[%clk 0:00:40.3]} 55... Kb1 {[%clk 0:00:21.5]} 56. Qb4+ {[%clk 0:00:40.3]}
56... Kc2 {[%clk 0:00:20.1]} 57. Qa3 {[%clk 0:00:40.6]} 57... Kb1 {[%clk
0:00:20.5]} 58. Qb3+ {[%clk 0:00:41.1]} 58... Ka1 {[%clk 0:00:20.6]} 59. Kg7
{[%clk 0:00:42]} 1/2-1/2

[Event "Late-Titled-Tuesday-Blitz-March-12-2024"]
[Site "Chess.com"]
[Date "2024.03.12"]
[Round "5"]
[White "Statham_01"]
[Black "the_blue_pill"]
[Result "1-0"]
[WhiteElo "2602"]
[BlackElo "2455"]
[TimeControl "180+1"]
[EndTime "14:54:29 PDT"]
[Termination "Statham_01 won on time"]

1. e4 {[%clk 0:03:00.9]} 1... c5 {[%clk 0:02:58.4]} 2. Nf3 {[%clk 0:03:01.1]}
2... d6 {[%clk 0:02:58.2]} 3. d4 {[%clk 0:03:01.7]} 3... cxd4 {[%clk 0:02:58.6]}
4. Nxd4 {[%clk 0:03:02.6]} 4... Nf6 {[%clk 0:02:59.3]} 5. Nc3 {[%clk 0:03:03.3]}
5... g6 {[%clk 0:02:59.9]} 6. Be3 {[%clk 0:03:03]} 6... Bg7 {[%clk 0:02:59.5]}
7. f3 {[%clk 0:03:03.6]} 7... O-O {[%clk 0:02:59.8]} 8. Qd2 {[%clk 0:03:04.1]}
8... Nc6 {[%clk 0:03:00.5]} 9. O-O-O {[%clk 0:03:03]} 9... d5 {[%clk 0:03:00.7]}
10. exd5 {[%clk 0:02:58.7]} 10... Nxd5 {[%clk 0:03:00.7]} 11. Nxc6 {[%clk
0:02:59.4]} 11... bxc6 {[%clk 0:03:01.5]} 12. Bd4 {[%clk 0:02:59.8]} 12... e5
{[%clk 0:03:01.9]} 13. Bc5 {[%clk 0:02:59.8]} 13... Re8 {[%clk 0:03:02.6]} 14.
Ne4 {[%clk 0:02:59.5]} 14... Qc7 {[%clk 0:03:03]} 15. h4 {[%clk 0:02:54.7]}
15... f5 {[%clk 0:02:50.7]} 16. Nd6 {[%clk 0:02:48.4]} 16... Rd8 {[%clk
0:02:51]} 17. Nxc8 {[%clk 0:02:48.5]} 17... Raxc8 {[%clk 0:02:51.6]} 18. Bc4
{[%clk 0:02:48.5]} 18... h5 {[%clk 0:02:44.8]} 19. g4 {[%clk 0:02:47]} 19... Kh7
{[%clk 0:02:42.1]} 20. Kb1 {[%clk 0:02:41.5]} 20... Nb6 {[%clk 0:02:19]} 21. Qe2
{[%clk 0:02:10.8]} 21... e4 {[%clk 0:02:14]} 22. gxf5 {[%clk 0:01:44]} 22... Qe5
{[%clk 0:01:50.1]} 23. fxg6+ {[%clk 0:01:43.8]} 23... Kh8 {[%clk 0:01:50.5]} 24.
Ba3 {[%clk 0:01:27.3]} 24... Nxc4 {[%clk 0:01:10.3]} 25. Qxc4 {[%clk 0:01:25.4]}
25... exf3 {[%clk 0:00:55.4]} 26. Qc5 {[%clk 0:00:18.1]} 26... Rxd1+ {[%clk
0:00:19]} 27. Rxd1 {[%clk 0:00:17]} 27... Qxc5 {[%clk 0:00:19.4]} 28. Bxc5
{[%clk 0:00:17]} 28... Re8 {[%clk 0:00:17.7]} 29. c3 {[%clk 0:00:11]} 29... Bf6
{[%clk 0:00:13]} 30. Rf1 {[%clk 0:00:07.8]} 30... Kg7 {[%clk 0:00:09.4]} 31.
Rxf3 {[%clk 0:00:07]} 31... Kxg6 {[%clk 0:00:10.1]} 32. Rg3+ {[%clk 0:00:06.6]}
32... Kf5 {[%clk 0:00:09.7]} 33. Rf3+ {[%clk 0:00:06.6]} 33... Kg6 {[%clk
0:00:09.8]} 34. Bf2 {[%clk 0:00:05.9]} 34... a6 {[%clk 0:00:05.3]} 35. a4 {[%clk
0:00:06.4]} 35... Re4 {[%clk 0:00:04.2]} 36. a5 {[%clk 0:00:03.9]} 36... Bxh4
{[%clk 0:00:03.4]} 37. Bd4 {[%clk 0:00:03.4]} 37... Re6 {[%clk 0:00:02.6]} 38.
Kc2 {[%clk 0:00:03.8]} 1-0